[Event "III Menorca Open-A 2024"]
[Site "Ciutadella Menorca"]
[Date "2024.04.06"]
[Round "7.15"]
[White "Mendes Aaron Reeve"]
[Black "Van Foreest, Jorden"]
[Result "0-1"]
[ECO "C02"]
[WhiteElo "2288"]
[BlackElo "2672"]
[Annotator "TA"]
[PlyCount "110"]
[EventDate "2024.04.02"]
[EventType "swiss"]
[EventCountry "ESP"]
[SourceTitle "playchess.com"]
[Source "ChessBase"]
[SourceQuality "1"]
[TimeControl "5400+30"]

{[%evp 11,109,0,16,16,35,-2,12,3,26,16,7,7,16,16,20,2,15,27,81,0,0,7,0,0,8,2,0,0,11,29,9,-40,-33,-48,-59,-56,-40,-50,-51,-83,-70,-73,-107,-137,-135,-157,-127,-166,-96,-627,-552,-578,-638,-639,-629,-671,-648,-685,-693,-672,-682,-1163,-1141,-1193,-918,-995,-958,-981,-948,-956,-967,-952,-906,-1028,-880,-29985,-29986,-29992,-29991,-29991,-29992,-29992,-29993,-29993,-29990,-29991,-29991,-29991,-29992,-29992,-29993,-29993,-29994,-29994,-29995,-29997,-29998,-29998,-29999,-29999]} 1. e4 {[%emt 0:00:14]} e6 {[%emt 0:01:26]} 2. d4 {[%emt 0:00:43]} d5 {[%emt 0:00:12]} 3. e5 {[%emt 0:00:18]} c5 {[%emt 0:00:09]} 4. c3 {[%emt 0:00:08]} Nc6 {[%emt 0:00:21]} 5. Nf3 {[%emt 0:00:11]} Bd7 {[%emt 0:00:52]} 6. Be2 {[%emt 0:02:46]} Rc8 {[%emt 0:00:11]} 7. O-O {[%emt 0:02:02]} a6 {[%emt 0:00:05]} 8. h3 {[%emt 0:02:39]} h6 {[%emt 0:00:18]} 9. Be3 {[%emt 0:01:37] The position is equal.} c4 {[%emt 0:15:07]} 10. Nbd2 {[%emt 0:04:38]} Nge7 {[%emt 0:00:08]} 11. Ne1 {[%emt 0:02:00]} Nf5 {[%emt 0:00:05]} 12. Bf4 {[%emt 0:00:13]} b5 {[%emt 0:03:57]} 13. g4 {[%emt 0:01:02]} Nfe7 {[%emt 0:08:30]} 14. a3 {[%emt 0:03:54]} h5 {[%emt 0:02:27]} 15. Bg3 {[%emt 0:01:06]} (15. gxh5 $16 f6 16. Ndf3) 15... hxg4 $11 {[%emt 0:00:07]} 16. hxg4 {[%emt 0:00:07]} g5 {[%emt 0:00:03]} 17. Nef3 {[%emt 0:10:01]} Ng6 {[%emt 0:00:06]} 18. Kg2 {[%emt 0:00:11]} f5 {[%emt 0:00:15]} 19. Rh1 {[%emt 0:15:45]} f4 {[%emt 0:01:39]} 20. Rxh8 {[%emt 0:00:37]} Nxh8 {[%emt 0:00:03]} 21. Bh2 {[%emt 0:00:20]} (21. Qh1 $11 Nf7 22. Bh2) 21... Kf7 $15 {[%emt 0:01:53]} 22. Qc2 {[%emt 0:01:42]} Kg7 {[%emt 0:00:21] Dodges Qh7+} 23. Rh1 {[%emt 0:02:23][%cal Oh2f4] [#] Strongly threatening Bxf4!} Ng6 {[%emt 0:01:32]} 24. Bg1 {[%emt 0:00:40]} Be7 {[%emt 0:00:47]} 25. Qb1 {[%emt 0:03:52]} Be8 {[%emt 0:00:48]} 26. Bd1 {[%emt 0:00:30]} a5 {[%emt 0:03:48]} 27. b4 {[%emt 0:04:30]} Ra8 {[%emt 0:00:49]} 28. Bc2 {[%emt 0:05:57]} Ra7 {[%emt 0:01:03]} 29. Qb2 {[%emt 0:03:21]} Nf8 {[%emt 0:00:21]} (29... axb4 $19 30. cxb4 Qb6) 30. a4 {[%emt 0:04:44][%mdl 8192] This costs White the game.} (30. Ne1 $17) 30... axb4 $19 {[%emt 0:01:46]} 31. axb5 {[%emt 0:00:29]} bxc3 {[%emt 0:00:57]} 32. Qxc3 {[%emt 0:00:26]} Ra3 {[%emt 0:02:52]} 33. Qb2 {[%emt 0:00:32]} c3 {[%emt 0:00:08]} 34. Qb1 {[%emt 0:00:23]} Nb4 {[%emt 0:00:36]} 35. Nb3 {[%emt 0:00:44]} Ra2 {[%emt 0:01:32]} 36. Na1 {[%emt 0:02:53]} Qa5 {[%emt 0:02:05]} 37. b6 {[%emt 0:01:28]} Qxb6 {[%emt 0:00:47]} 38. Bb3 {[%emt 0:02:34]} Ra3 {[%emt 0:01:54]} 39. Qc1 {[%emt 0:01:14]} Qa5 {[%emt 0:04:34]} 40. Bh2 {[%emt 0:00:36]} Bg6 {[%emt 0:01:46] [#] ...Be4 would now be deadly.} 41. Qxc3 {[%emt 0:02:43]} Be4 {[%emt 0:00:06] Hoping for ...Ng6.} 42. Rc1 {[%emt 0:02:39]} Ng6 {[%emt 0:00:06]} 43. Qc8 {[%emt 0:01:13]} Rxa1 {[%emt 0:01:28] Black mates.} 44. Rc7 {[%emt 0:00:47]} Qb5 {[%emt 0:00:28][%csl Ga1][%cal Rb5f1]} 45. Bc4 {[%emt 0:00:26]} dxc4 {[%emt 0:00:10]} 46. Qxe6 {[%emt 0:00:15]} Bxf3+ {[%emt 0:00:15]} 47. Kh3 {[%emt 0:00:20]} Bg2+ {[%emt 0:00:29]} 48. Kxg2 {[%emt 0:00:09]} Qd5+ {[%emt 0:00:04]} 49. Qxd5 {[%emt 0:00:09]} Nxd5 {[%emt 0:00:04]} 50. Rd7 {[%emt 0:00:10]} Nh4+ {[%emt 0:00:37]} 51. Kh3 {[%emt 0:00:11]} Ra3+ {[%emt 0:00:03]} 52. Bg3 {[%emt 0:00:04]} fxg3 {[%emt 0:00:05]} 53. fxg3 {[%emt 0:00:07]} Nf4+ {[%emt 0:00:07]} 54. Kh2 {[%emt 0:00:04]} Nf3+ {[%emt 0:00:04]} 55. Kh1 {[%emt 0:00:05]} Ra1# {[%emt 0:00:35] Weighted Error Value: White=0.55/Black=0.12 (very precise) .  Loses game:     	White=1     	---        Mistake:       	White=2     	Black=2      Inaccurate:     	White=3     	---        OK:         	White=5     	Black=7      Best:        	White=1     	Black=2} 0-1

[Event "III Menorca Open-A 2024"]
[Site "Ciutadella Menorca"]
[Date "2024.04.06"]
[Round "7.16"]
[White "Alonso Rosell, Alvar"]
[Black "Shuvalova, Polina"]
[Result "1/2-1/2"]
[ECO "A17"]
[WhiteElo "2562"]
[BlackElo "2439"]
[Annotator "TA"]
[PlyCount "109"]
[EventDate "2024.04.02"]
[EventType "swiss"]
[EventCountry "ESP"]
[SourceTitle "playchess.com"]
[Source "ChessBase"]
[SourceQuality "1"]
[TimeControl "5400+30"]

{[%evp 18,109,-5,-8,0,0,5,7,22,12,22,-4,30,41,49,43,39,29,43,29,37,43,38,37,28,28,46,41,33,30,59,45,59,35,32,25,17,14,14,14,14,16,26,20,14,12,70,75,117,58,51,46,64,33,43,37,41,26,26,8,25,9,31,0,0,0,0,0,0,0,0,0,304,312,295,0,0,0,0,0,0,0,0,0,0,0,0,0,0,0,0,0,0,0]} 1. Nf3 {[%emt 0:00:28] Donchenko,Alexander} d5 {[%emt 0:00:02]} 2. e3 {[%emt 0:00:08]} Nf6 {[%emt 0:00:25]} 3. c4 {[%emt 0:01:22]} e6 {[%emt 0:00:06]} 4. Nc3 {[%emt 0:00:06]} Bd6 {[%emt 0:02:07]} 5. b3 {[%emt 0:05:55]} O-O {[%emt 0:00:06]} 6. Bb2 {[%emt 0:00:05] A17: English Opening: 1...Nf6 with ...Bb4.} Re8 {[%emt 0:00:39]} 7. Nb5 {[%emt 0:00:16]} Be7 {[%emt 0:00:37]} 8. Be5 {[%emt 0:00:30]} Na6 {[%emt 0:00:16]} 9. Be2 {[%emt 0:07:05]} c6 {[%emt 0:01:10]} 10. Nc3 {[%emt 0:00:32]} Nc5 {[%emt 0:07:32]} 11. Qc2 {[%emt 0:07:15]} Ncd7 {[%emt 0:06:41]} 12. Bg3 {[%emt 0:01:05]} Bb4 $146 {[%emt 0:09:55]} ({Predecessor:} 12... dxc4 13. bxc4 b6 14. h3 Bb4 15. Bh2 Bb7 16. O-O Qe7 17. d4 Rac8 18. Rfd1 Bxc3 19. Qxc3 {1-0 Donchenko,A (2627)-Tabatabaei,M (2686) Tata Steel-B 85th 2023 (11)}) 13. O-O {[%emt 0:03:00]} Qe7 {[%emt 0:06:22]} 14. Rfd1 {[%emt 0:12:49]} a6 {[%emt 0:03:12]} 15. d4 {[%emt 0:06:18]} b6 {[%emt 0:04:28]} 16. a3 {[%emt 0:12:01]} Bxc3 {[%emt 0:11:49]} (16... Bxa3 17. c5 bxc5 (17... Bb4 18. Na2 $16) 18. Rxa3 $16) 17. Qxc3 {[%emt 0:01:01]} Ne4 {[%emt 0:00:03]} 18. Qb2 {[%emt 0:02:12]} Nxg3 {[%emt 0:02:46]} 19. hxg3 {[%emt 0:00:07]} (19. fxg3 h6 $15) 19... Bb7 {[%emt 0:00:59]} 20. b4 {[%emt 0:01:09]} dxc4 {[%emt 0:03:03]} 21. Bxc4 {[%emt 0:00:08]} a5 {[%emt 0:00:07]} 22. Be2 {[%emt 0:06:40]} h6 {[%emt 0:02:25]} 23. Nd2 {[%emt 0:01:58]} axb4 {[%emt 0:03:30]} 24. axb4 {[%emt 0:00:55]} Nf6 {[%emt 0:03:08]} 25. Nc4 {[%emt 0:03:18]} Ba6 {[%emt 0:00:14]} 26. Rdc1 {[%emt 0:15:43]} (26. Nxb6 Bxe2 27. Qxe2 (27. Nxa8 $2 Bxd1 28. Nb6 Rb8 $19) 27... Rxa1 28. Rxa1 Qxb4 $11) 26... Bxc4 {[%emt 0:03:20]} 27. Rxa8 {[%emt 0:00:11]} Rxa8 {[%emt 0:00:08]} 28. Rxc4 {[%emt 0:00:06]} Qd6 {[%emt 0:03:46]} 29. Bf3 {[%emt 0:02:16]} Nd5 {[%emt 0:00:07]} 30. b5 {[%emt 0:03:56]} cxb5 {[%emt 0:04:35]} 31. Qxb5 {[%emt 0:00:02]} Ra1+ {[%emt 0:03:21]} (31... g6 $11) 32. Kh2 $14 {[%emt 0:00:03]} Nf6 {[%emt 0:00:06]} 33. e4 {[%emt 0:04:30]} (33. Qb2 $16 Ra7 34. Rc6) 33... Qd8 $14 {[%emt 0:03:28]} 34. Qb2 {[%emt 0:00:33]} Ra8 {[%emt 0:00:30]} 35. e5 {[%emt 0:01:59]} Nd5 {[%emt 0:00:09]} 36. Rc6 {[%emt 0:00:09]} Qg5 {[%emt 0:02:32]} 37. Qc2 {[%emt 0:01:59]} g6 {[%emt 0:02:40]} 38. Rc8+ {[%emt 0:00:54]} Rxc8 {[%emt 0:00:04]} 39. Qxc8+ {[%emt 0:00:03]} Kg7 {[%emt 0:00:04]} 40. Qb7 {[%emt 0:00:53]} Nb4 {[%emt 0:04:59]} 41. Qxb6 {[%emt 0:00:17]} Nd3 {[%emt 0:00:03]} 42. Qa6 {[%emt 0:00:59]} Qd2 $1 {[%emt 0:00:04]} (42... Nxf2 $2 43. Qe2 $18) 43. d5 {[%emt 0:00:31]} Nxf2 {[%emt 0:01:22]} 44. Qa1 {[%emt 0:00:02]} g5 $2 {[%emt 0:05:30][%mdl 8192]} (44... exd5 $2 {loses.} 45. e6+ d4 46. e7 $18 (46. Qa7 h5 $18)) (44... h5 $11) 45. dxe6 $18 {[%emt 0:00:12]} fxe6 {[%emt 0:01:11] [#]} 46. Qa7+ $2 {[%emt 0:00:03]} ({White must play} 46. Bh5 $1 $18 {White wants to mate with Qa7+.} Qd7 (46... Qe3 $2 47. Qa5 $18) 47. Qb2) 46... Kg6 $11 {[%emt 0:01:20]} 47. Qe7 {[%emt 0:01:36]} Qe1 $1 {[%emt 0:00:22]} 48. Qxe6+ {[%emt 0:00:29]} Kg7 {[%emt 0:00:10]} 49. Qf6+ {[%emt 0:00:31]} Kh7 {[%emt 0:00:03]} 50. Qf7+ {[%emt 0:00:31]} Kh8 {[%emt 0:00:02]} 51. Qf8+ {[%emt 0:00:20]} Kh7 {[%emt 0:00:02]} 52. Qe7+ {[%emt 0:00:06]} Kh8 $1 {[%emt 0:00:11]} 53. Qd8+ {[%emt 0:00:46]} Kg7 {[%emt 0:00:04]} 54. Qc7+ {[%emt 0:00:12]} Kh8 {[%emt 0:00:09]} 55. Qd8+ {[%emt 0:01:45]} 1/2-1/2

[Event "III Menorca Open-A 2024"]
[Site "Ciutadella Menorca"]
[Date "2024.04.06"]
[Round "7.17"]
[White "Mamedov, Edgar"]
[Black "Cuenca Jimenez, Jose Fernando"]
[Result "1-0"]
[ECO "D37"]
[WhiteElo "2317"]
[BlackElo "2500"]
[Annotator "TA"]
[PlyCount "59"]
[EventDate "2024.04.02"]
[EventType "swiss"]
[EventCountry "ESP"]
[SourceTitle "playchess.com"]
[Source "ChessBase"]
[SourceQuality "1"]
[TimeControl "5400+30"]

{[%evp 12,59,16,12,29,8,35,28,18,25,24,18,24,0,0,8,10,12,5,12,25,0,0,9,10,14,16,0,0,-4,20,14,16,21,12,19,24,24,445,429,717,709,29980,29981,29981,29982,29982,29983,29969,29970]} 1. d4 {[%emt 0:00:16]} d5 {[%emt 0:00:16]} 2. c4 {[%emt 0:00:16]} e6 {[%emt 0:00:06]} 3. Nf3 {[%emt 0:00:16]} Nf6 {[%emt 0:00:18]} 4. Nc3 {[%emt 0:00:07]} Be7 {[%emt 0:00:08]} 5. Bf4 {[%emt 0:00:30]} O-O {[%emt 0:00:30]} 6. e3 {[%emt 0:00:20]} b6 {[%emt 0:00:09]} 7. Bd3 {[%emt 0:01:57]} dxc4 {[%emt 0:00:06]} 8. Bxc4 {[%emt 0:00:07]} Ba6 {[%emt 0:00:04]} 9. Bxa6 {[%emt 0:00:49]} Nxa6 {[%emt 0:00:05] White has an edge.} 10. O-O {[%emt 0:02:49]} c5 {[%emt 0:02:06]} 11. Qe2 {[%emt 0:09:15]} Qc8 {[%emt 0:01:53]} 12. Rac1 {[%emt 0:03:32]} Qb7 $1 {[%emt 0:00:20]} 13. Rfd1 {[%emt 0:02:12]} Rac8 {[%emt 0:07:37]} 14. Nb5 {[%emt 0:05:55]} Rfd8 {[%emt 0:02:36]} 15. a3 {[%emt 0:02:43]} Nd5 {[%emt 0:01:50]} 16. Bg3 {[%emt 0:03:06]} cxd4 {[%emt 0:00:06]} 17. Nbxd4 {[%emt 0:05:32]} Rxc1 {[%emt 0:33:21]} 18. Rxc1 {[%emt 0:00:05]} Rc8 {[%emt 0:00:03]} 19. Rd1 {[%emt 0:04:32]} Nc5 {[%emt 0:08:29]} 20. Ne5 {[%emt 0:05:09]} Bf6 {[%emt 0:06:55]} 21. e4 {[%emt 0:17:35]} Ne7 {[%emt 0:08:50]} 22. f3 {[%emt 0:04:44]} Bxe5 {[%emt 0:08:13]} 23. Bxe5 {[%emt 0:00:05]} Rd8 {[%emt 0:01:31]} 24. b4 {[%emt 0:09:24][%cal Bb2b4,Bb4b5,Bb5c6,Bc6c7][%mdl 32]} Na4 {[%emt 0:12:45][%mdl 8192] [#] A mistake that costs the game.} (24... Qc8 $11 {and Black is okay.}) 25. Nf5 $1 $18 {[%emt 0:06:41][%cal Rd1d8]} Rxd1+ {[%emt 0:01:39]} (25... Rd7 $142) 26. Qxd1 {[%emt 0:00:03]} Nc6 {[%emt 0:00:03] Repels Qd8+} 27. b5 {[%emt 0:00:19] White mates.} ({Weaker is} 27. Bxg7 exf5 28. Bh6 Qe7 29. Qxa4 Qf6 $14) 27... exf5 {[%emt 0:03:27]} 28. bxc6 {[%emt 0:00:05][%cal Rd1d8]} Qe7 {[%emt 0:00:20]} 29. c7 {[%emt 0:00:35]} Qc5+ {[%emt 0:00:06]} 30. Kh1 {[%emt 0:00:18] Weighted Error Value: White=0.04 (flawless) /Black=0.56.  Loses game:     	---       	Black=1      Mistake:       	---       	Black=1      Inaccurate:     	---       	Black=2      OK:         	White=7     	Black=8      Strong:       	White=1     	Black=1} 1-0

[Event "III Menorca Open-A 2024"]
[Site "Ciutadella Menorca"]
[Date "2024.04.06"]
[Round "7.18"]
[White "Cramling Bellon, Anna"]
[Black "Nguyen, Anh Khoi"]
[Result "1/2-1/2"]
[ECO "D37"]
[WhiteElo "2115"]
[BlackElo "2520"]
[Annotator "TA"]
[PlyCount "82"]
[EventDate "2024.04.02"]
[EventType "swiss"]
[EventCountry "ESP"]
[SourceTitle "playchess.com"]
[Source "ChessBase"]
[SourceQuality "1"]
[TimeControl "5400+30"]

{[%evp 20,82,47,0,22,29,103,95,93,41,47,31,58,60,88,80,91,59,59,58,81,62,69,85,122,-33,-57,-24,297,289,432,434,378,305,292,253,278,0,0,0,0,0,0,0,296,0,0,0,304,0,0,0,260,313,293,291,314,283,272,-387,-330,-5381,-5389,-29999,-5389]} 1. d4 {[%emt 0:00:35]} Nf6 {[%emt 0:00:11]} 2. c4 {[%emt 0:00:41]} e6 {[%emt 0:00:15]} 3. Nf3 {[%emt 0:01:06]} d5 {[%emt 0:00:16]} 4. Nc3 {[%emt 0:00:29]} a6 {[%emt 0:00:27]} 5. c5 {[%emt 0:03:36]} b6 {[%emt 0:00:16]} 6. cxb6 {[%emt 0:01:07]} c5 {[%emt 0:00:12]} 7. e3 {[%emt 0:11:54]} Nbd7 {[%emt 0:10:50]} 8. Na4 {[%emt 0:08:08]} Bd6 {[%emt 0:08:27]} 9. Bd2 {[%emt 0:03:52]} O-O {[%emt 0:07:47]} 10. Rc1 {[%emt 0:06:56]} Qe7 {[%emt 0:05:44]} 11. a3 {[%emt 0:09:27]} (11. Bd3 $14) 11... Rb8 {[%emt 0:07:48]} 12. Ba5 {[%emt 0:05:47]} e5 {[%emt 0:18:18]} (12... c4 $11 {keeps the balance.}) 13. dxc5 {[%emt 0:07:48]} Nxc5 {[%emt 0:04:26]} 14. Be2 {[%emt 0:00:06]} ({White should play} 14. Nxc5 $16 Bxc5 15. Be2 (15. Nxe5 Ne4 $16)) 14... Nxa4 {[%emt 0:03:22]} 15. Qxa4 {[%emt 0:00:04]} Re8 {[%emt 0:04:02]} 16. O-O {[%emt 0:02:13]} Bb7 {[%emt 0:04:07]} 17. Rfe1 {[%emt 0:06:16]} Rbd8 {[%emt 0:01:11]} 18. Bb4 {[%emt 0:10:06]} Bxb4 {[%emt 0:02:12]} 19. axb4 {[%emt 0:00:03]} (19. Qxb4 Qxb4 20. axb4 Rd6 $16) 19... Qd6 {[%emt 0:00:28]} 20. Qa5 {[%emt 0:00:26]} d4 {[%emt 0:03:23]} 21. Red1 {[%emt 0:06:00]} (21. Bxa6 Bxa6 22. Qxa6 dxe3 23. fxe3 (23. Rxe3 e4 $17) 23... Qxb4 $11) 21... Qe6 {[%emt 0:02:16]} 22. Rc7 $2 {[%emt 0:03:24]} ({White should try} 22. exd4 $16 {[%cal Rf3e5]} Bxf3 23. gxf3 (23. Bxf3 e4 $16)) 22... Bxf3 $1 $15 {[%emt 0:01:54]} 23. gxf3 {[%emt 0:00:16]} dxe3 $2 {[%emt 0:03:41][%mdl 8192]} (23... Nd5 $11 {and Black stays safe.} 24. Rc5 Rd6) 24. Rxd8 $18 {[%emt 0:00:32]} (24. fxe3 Rxd1+ 25. Bxd1 Nd5 $16) 24... exf2+ {[%emt 0:05:10]} (24... Rxd8 {keeps fighting.} 25. Rc4 (25. Bxa6 Ne4) (25. fxe3 Nd5 $11) 25... exf2+ (25... Rd2 $2 26. b7 $18) 26. Kxf2 Rb8) 25. Kxf2 $18 {[%emt 0:00:02]} Rxd8 {[%emt 0:00:08]} 26. b7 {[%emt 0:00:15]} (26. Qxa6 e4 (26... Nd5 $2 27. Bc4 $16) 27. b7 Qe5 $11) (26. Bxa6 Qf5 27. Be2 Ng4+ 28. Kg1 Qb1+ 29. Bf1 Ne3 $17) 26... Ne4+ {[%emt 0:02:49]} 27. fxe4 {[%emt 0:10:50]} Qf6+ {[%emt 0:00:06]} 28. Kg2 $2 {[%emt 0:01:27]} ({Only move:} 28. Bf3 $1 $18 {White wants to mate with Rc8.} Qh4+ 29. Kf1 Qh3+ 30. Kg1 Qxf3 31. Qd5 Qg4+ 32. Kf1 Qf4+ 33. Ke1 (33. Ke2 Qg4+ 34. Ke1 Qh4+ 35. Kd1 h6 $18) 33... Qh4+ (33... Rxd5 34. b8=Q+) 34. Kd1) 28... Qg6+ $11 {[%emt 0:00:19]} 29. Kf1 {[%emt 0:00:12]} Qf6+ $1 {[%emt 0:00:59]} 30. Kg1 {[%emt 0:00:31]} Qg6+ {[%emt 0:00:08]} 31. Kf2 $2 {[%emt 0:00:33][%mdl 8192]} (31. Kf1 $11 Qf6+ 32. Kg2 Qg6+ 33. Kf2 Qf6+ 34. Bf3 Qh4+ 35. Kf1 Qh3+ 36. Kg1 Qxf3 37. Qd5 Qg4+ 38. Kf1 Qf4+ 39. Ke1 (39. Ke2 Qg4+ 40. Kf1 Qf4+ 41. Ke1 Qh4+ 42. Kd1 h6 $18) 39... Qh4+ (39... Rxd5 40. b8=Q+) 40. Kd1) 31... Qf6+ $18 {[%emt 0:00:14]} 32. Kg2 $2 {[%emt 0:00:58]} (32. Bf3 $1 $18 Qh4+ 33. Kf1 Qh3+ 34. Kg1 Qxf3 35. Qd5 Qe3+ 36. Kf1 Qf4+ 37. Ke1 (37. Ke2 Qg4+ 38. Ke1 Qh4+ 39. Kd1 h6 $18) 37... Qh4+ (37... Rxd5 38. b8=Q+) 38. Kd1) 32... Qg6+ $11 {[%emt 0:00:09]} 33. Kf2 $2 {[%emt 0:00:06][%mdl 8192]} (33. Kf1 $11 Qf6+ 34. Kg2) 33... Qf6+ $18 {[%emt 0:00:07]} 34. Kg2 $2 {[%emt 0:00:45]} (34. Bf3 $1 $18 {Threatening mate with Rc8.} Qh4+ 35. Kf1 Qh3+ 36. Kg1 Qxf3 37. Qd5 Qg4+ 38. Kf1 Qh3+ 39. Ke1 Qh4+ (39... Rxd5 40. b8=Q+) 40. Kd1) 34... Qg6+ $11 {[%emt 0:00:10]} 35. Kf2 $2 {[%emt 0:01:29][%mdl 8192]} (35. Kh3 $11 Qh6+ 36. Kg2 Qg6+) 35... Qf6+ $18 {[%emt 0:06:08] [#]} 36. Bf3 $1 Qh4+ 37. Kf1 {[%emt 0:01:00]} Qh3+ {[#]} 38. Kg1 $1 {[%emt 0:00:30]} Qxf3 {[%emt 0:01:30]} 39. b8=Q $4 {[%mdl 8192]} (39. Qd5 $1 $18 {[%cal Rd5d8] is the narrow road to win.} Qe3+ 40. Kf1 Qh3+ 41. Ke2 Qg4+ 42. Ke1 (42. Kf1 Qh3+ 43. Ke1 Qh4+ 44. Kd1 h6 $18) 42... Qh4+ (42... Rxd5 43. b8=Q+) 43. Kd1) 39... Rxb8 40. Qxe5 $2 {[%emt 0:01:00]} (40. Qd5) 40... Rd8 $19 {[%emt 0:01:00]} ({Inferior is} 40... Rxb4 41. Qe8#) 41. Qa5 {[%emt 0:00:30]} Qxe4 (41... Rd1# $142) 1/2-1/2

[Event "III Menorca Open-A 2024"]
[Site "Ciutadella Menorca"]
[Date "2024.04.06"]
[Round "7.19"]
[White "Prado, Alexandra"]
[Black "Eche, Sylvain"]
[Result "0-1"]
[ECO "B26"]
[WhiteElo "1877"]
[BlackElo "2019"]
[Annotator "NA RC"]
[PlyCount "80"]
[EventDate "2024.04.02"]
[EventType "swiss"]
[EventCountry "ESP"]
[SourceTitle "playchess.com"]
[Source "ChessBase"]
[SourceQuality "1"]
[TimeControl "5400+30"]

1. e4 {[%emt 0:04:40]} c5 {[%emt 0:00:05]} 2. Nc3 {[%emt 0:00:25]} d6 {[%emt 0:00:04]} 3. g3 {[%emt 0:00:12]} Nc6 {[%emt 0:00:26]} 4. Bg2 {[%emt 0:00:32]} g6 {[%emt 0:00:10]} 5. d3 {[%emt 0:00:33]} Bg7 {[%emt 0:00:08]} 6. Be3 {[%emt 0:00:43]} Rb8 {[%emt 0:00:27]} 7. Qd2 {[%emt 0:04:38]} b5 {[%emt 0:00:34]} 8. Nge2 {[%emt 0:07:27]} b4 {[%emt 0:01:53] The main line 8...b4 scores better than 8...Nd4.} 9. Nd1 {[%emt 0:00:05]} Nd4 {[%emt 0:00:13]} 10. O-O {[%emt 0:04:29]} h5 {[%emt 0:04:22] B26: Closed Sicilian: 3 g3, lines with early Be3.} 11. h4 {[%emt 0:07:55]} e6 {[%emt 0:04:57]} 12. c3 {[%emt 0:02:15]} Nxe2+ {[%emt 0:00:16]} 13. Qxe2 {[%emt 0:00:01]} bxc3 {[%emt 0:00:13]} 14. bxc3 {[%emt 0:00:06]} Ne7 $146 {[%emt 0:05:12]} ({Predecessor:} 14... Ba6 15. Re1 Nf6 16. Qd2 Ng4 17. Bg5 Qa5 18. d4 cxd4 19. cxd4 Qxd2 20. Bxd2 Bxd4 21. Rc1 Kd7 22. Bh3 Ne5 23. Bc3 Nf3+ 24. Kh1 Bxc3 25. Rxc3 Nxe1 {0-1 Nguyen,H (1957)-Preotu,R (2487) Titled Tuesday intern op 27th July blitz 2021 (1)}) 15. d4 {[%emt 0:01:25]} cxd4 {[%emt 0:01:45]} 16. Bxd4 {[%emt 0:02:06]} Bxd4 {[%emt 0:00:12]} 17. cxd4 {[%emt 0:00:04]} O-O {[%emt 0:07:00]} 18. Nc3 {[%emt 0:12:35]} Qa5 {[%emt 0:01:34]} 19. Qe3 {[%emt 0:02:35]} Ba6 {[%emt 0:02:30]} 20. Rfb1 {[%emt 0:09:03]} Rbc8 {[%emt 0:08:12]} 21. Rc1 {[%emt 0:09:58]} Rc7 {[%emt 0:01:41]} 22. e5 {[%emt 0:02:50]} Nf5 {[%emt 0:04:42]} 23. Qe1 {[%emt 0:08:37]} Nxd4 {[%emt 0:07:35]} 24. Kh2 {[%emt 0:05:25]} Qxe5 {[%emt 0:04:35]} 25. Qxe5 {[%emt 0:00:56]} dxe5 {[%emt 0:00:05]} 26. Ne4 {[%emt 0:00:31]} Rfc8 {[%emt 0:01:52]} 27. Nf6+ {[%emt 0:03:32]} Kf8 {[%emt 0:03:16]} 28. Rxc7 {[%emt 0:01:01]} Rxc7 {[%emt 0:00:01]} 29. Re1 {[%emt 0:00:33]} Ke7 {[%emt 0:01:30]} 30. Ne4 {[%emt 0:02:36]} Rc2 {[%emt 0:01:40]} 31. Kg1 {[%emt 0:06:27]} Rxa2 {[%emt 0:03:26]} 32. Nc5 {[%emt 0:01:15]} Be2 {[%emt 0:00:36]} 33. Rb1 {[%emt 0:00:38]} Bb5 {[%emt 0:04:20]} 34. Rd1 {[%emt 0:00:45]} a5 {[%emt 0:01:03]} 35. Bf1 {[%emt 0:00:24]} Bc6 {[%emt 0:01:36]} 36. Bg2 {[%emt 0:00:27]} Nf3+ {[%emt 0:00:38]} 37. Kf1 {[%emt 0:00:42]} Bb5+ {[%emt 0:00:20]} 38. Nd3 {[%emt 0:00:10]} e4 {[%emt 0:00:39]} 39. Bxf3 {[%emt 0:00:28]} Bxd3+ {[%emt 0:02:16]} 40. Ke1 {[%emt 0:00:42]} Bc2 $19 {[%emt 0:00:20]} 0-1